[Event "Titled Tuesday Blitz May 10 Early 2022"]
[White "De Souza, Cristiano Gomes"]
[Black "Danaci, Ege"]
[WhiteFideId "2151758"]
[BlackFideId "34506748"]
[WhiteElo "2068"]
[BlackElo "1799"]
[Result "1/2-1/2"]
[Round "06"]
[TimeControl "180+1"]
[Date "2022.05.11"]
[WhiteClock "0:01:22"]
[BlackClock "0:00:14"]

1. d4 {[%clk 0:02:57]}  Nf6 {[%clk 0:02:59]} 2. c4 {[%clk 0:02:56]}  g6 {[%clk 0:02:56]} 3. Nf3 {[%clk 0:02:56]}  Bg7 {[%clk 0:02:54]} 4. Nc3 {[%clk 0:02:57]}  d6 {[%clk 0:02:55]} 5. e4 {[%clk 0:02:57]}  O-O {[%clk 0:02:55]} 6. Be2 {[%clk 0:02:57]}  e5 {[%clk 0:02:55]} 7. O-O {[%clk 0:02:58]}  exd4 {[%clk 0:02:56]} 8. Nxd4 {[%clk 0:02:57]}  Re8 {[%clk 0:02:57]} 9. f3 {[%clk 0:02:57]}  Nc6 {[%clk 0:02:57]} 10. Be3 {[%clk 0:02:57]}  Nh5 {[%clk 0:02:56]} 11. Qd2 {[%clk 0:02:57]}  Nf4 {[%clk 0:02:56]} 12. Rf2 {[%clk 0:02:57]}  Nxe2+ {[%clk 0:02:46]} 13. Ncxe2 {[%clk 0:02:47]}  Nxd4 {[%clk 0:02:31]} 14. Bxd4 {[%clk 0:02:46]}  f5 {[%clk 0:02:30]} 15. Bxg7 {[%clk 0:02:45]}  Kxg7 {[%clk 0:02:30]} 16. Nc3 {[%clk 0:02:44]}  Be6 {[%clk 0:02:23]} 17. Re1 {[%clk 0:02:38]}  Qf6 {[%clk 0:02:18]} 18. exf5 {[%clk 0:02:38]}  Bxf5 {[%clk 0:02:12]} 19. Rfe2 {[%clk 0:02:36]}  Rxe2 {[%clk 0:01:50]} 20. Rxe2 {[%clk 0:02:35]}  Be6 {[%clk 0:01:37]} 21. Nd5 {[%clk 0:02:31]}  Bxd5 {[%clk 0:01:35]} 22. Qxd5 {[%clk 0:02:30]}  c6 {[%clk 0:01:17]} 23. Qe4 {[%clk 0:02:26]}  Rf8 {[%clk 0:01:14]} 24. Qe7+ {[%clk 0:02:25]}  Rf7 {[%clk 0:01:05]} 25. Qxf6+ {[%clk 0:02:23]}  Kxf6 {[%clk 0:01:06]} 26. Kf2 {[%clk 0:02:23]}  Re7 {[%clk 0:01:06]} 27. Rxe7 {[%clk 0:02:20]}  Kxe7 {[%clk 0:01:07]} 28. Ke3 {[%clk 0:02:19]}  Ke6 {[%clk 0:01:02]} 29. Kd4 {[%clk 0:02:17]}  Kf5 {[%clk 0:00:57]} 30. g3 {[%clk 0:02:17]}  h5 {[%clk 0:00:56]} 31. b4 {[%clk 0:02:12]}  g5 {[%clk 0:00:49]} 32. a4 {[%clk 0:02:11]}  Ke6 {[%clk 0:00:15]} 33. a5 {[%clk 0:02:08]}  a6 {[%clk 0:00:11]} 34. h3 {[%clk 0:02:02]}  Kf5 {[%clk 0:00:11]} 35. Kd3 {[%clk 0:01:45]}  Ke5 {[%clk 0:00:11]} 36. Ke3 {[%clk 0:01:43]}  Kf5 {[%clk 0:00:08]} 37. Kd4 {[%clk 0:01:43]}  Ke6 {[%clk 0:00:07]} 38. Ke4 {[%clk 0:01:42]}  Kf6 {[%clk 0:00:07]} 39. Kd4 {[%clk 0:01:41]}  Kf5 {[%clk 0:00:07]} 40. Ke3 {[%clk 0:01:41]}  Ke5 {[%clk 0:00:08]} 41. Kd3 {[%clk 0:01:40]}  d5 {[%clk 0:00:07]} 42. Kc3 {[%clk 0:01:32]}  dxc4 {[%clk 0:00:03]} 43. Kxc4 {[%clk 0:01:32]}  Kf5 {[%clk 0:00:04]} 44. Kc5 {[%clk 0:01:32]}  Kf6 {[%clk 0:00:05]} 45. Kb6 {[%clk 0:01:28]}  Ke5 {[%clk 0:00:06]} 46. Kxb7 {[%clk 0:01:28]}  Kd4 {[%clk 0:00:06]} 47. Kxc6 {[%clk 0:01:27]}  Ke3 {[%clk 0:00:07]} 48. Kb6 {[%clk 0:01:27]}  Kxf3 {[%clk 0:00:07]} 49. Kxa6 {[%clk 0:01:27]}  Kxg3 {[%clk 0:00:08]} 50. b5 {[%clk 0:01:28]}  Kxh3 {[%clk 0:00:09]} 51. b6 {[%clk 0:01:29]}  g4 {[%clk 0:00:10]} 52. b7 {[%clk 0:01:29]}  g3 {[%clk 0:00:10]} 53. b8=Q {[%clk 0:01:29]}  g2 {[%clk 0:00:11]} 54. Qg8 {[%clk 0:01:27]}  Kh2 {[%clk 0:00:11]} 55. Qg6 {[%clk 0:01:27]}  h4 {[%clk 0:00:10]} 56. Kb7 {[%clk 0:01:23]}  g1=Q {[%clk 0:00:09]} 57. Qxg1+ {[%clk 0:01:22]}  Kxg1 {[%clk 0:00:10]} 58. a6 {[%clk 0:01:22]}  h3 {[%clk 0:00:11]} 59. a7 {[%clk 0:01:22]}  h2 {[%clk 0:00:12]} 60. a8=Q {[%clk 0:01:22]}  h1=Q+ {[%clk 0:00:13]} 61. Kb8 {[%clk 0:01:22]}  Qxa8+ {[%clk 0:00:14]} 62. Kxa8 {[%clk 0:01:22]} 1/2-1/2


[Site "https://www.chess.com"]

[Event "Titled Tuesday Blitz May 10 Early 2022"]
[White "Devaev, Alexander"]
[Black "Perdomo, Carlos Andres"]
[WhiteFideId "4169395"]
[BlackFideId "4400852"]
[WhiteElo "2185"]
[BlackElo "2268"]
[Result "1-0"]
[Round "06"]
[TimeControl "180+1"]
[Date "2022.05.11"]
[WhiteClock "0:00:13"]
[BlackClock "0:00:09"]

1. d4 {[%clk 0:03:00]}  Nf6 {[%clk 0:02:59]} 2. c4 {[%clk 0:03:01]}  e6 {[%clk 0:02:57]} 3. Nf3 {[%clk 0:03:00]}  d5 {[%clk 0:02:57]} 4. cxd5 {[%clk 0:02:59]}  exd5 {[%clk 0:02:58]} 5. Nc3 {[%clk 0:03:00]}  c6 {[%clk 0:02:58]} 6. Bg5 {[%clk 0:03:00]}  Nbd7 {[%clk 0:02:59]} 7. e3 {[%clk 0:02:59]}  Be7 {[%clk 0:02:59]} 8. Bd3 {[%clk 0:02:59]}  Nf8 {[%clk 0:02:59]} 9. Qc2 {[%clk 0:03:00]}  Ne6 {[%clk 0:02:59]} 10. Bxf6 {[%clk 0:02:58]}  Bxf6 {[%clk 0:03:00]} 11. O-O {[%clk 0:02:58]}  g6 {[%clk 0:02:59]} 12. b4 {[%clk 0:02:58]}  a6 {[%clk 0:02:58]} 13. a4 {[%clk 0:02:58]}  O-O {[%clk 0:02:50]} 14. Rfd1 {[%clk 0:02:57]}  Qd6 {[%clk 0:02:35]} 15. Qb3 {[%clk 0:02:49]}  Bd7 {[%clk 0:02:28]} 16. b5 {[%clk 0:02:47]}  axb5 {[%clk 0:02:24]} 17. axb5 {[%clk 0:02:48]}  Rxa1 {[%clk 0:02:25]} 18. Rxa1 {[%clk 0:02:48]}  c5 {[%clk 0:01:36]} 19. Qxd5 {[%clk 0:02:26]}  Qxd5 {[%clk 0:01:27]} 20. Nxd5 {[%clk 0:02:27]}  Bg7 {[%clk 0:01:28]} 21. Ra7 {[%clk 0:02:26]}  cxd4 {[%clk 0:01:26]} 22. Rxb7 {[%clk 0:02:15]}  Nc5 {[%clk 0:01:26]} 23. Rc7 {[%clk 0:02:11]}  Nxd3 {[%clk 0:01:15]} 24. Rxd7 {[%clk 0:02:11]}  Ra8 {[%clk 0:01:04]} 25. g3 {[%clk 0:01:46]}  Ra1+ {[%clk 0:00:55]} 26. Kg2 {[%clk 0:01:47]}  Ra2 {[%clk 0:00:56]} 27. b6 {[%clk 0:01:47]}  Rxf2+ {[%clk 0:00:52]} 28. Kg1 {[%clk 0:01:23]}  Rb2 {[%clk 0:00:50]} 29. b7 {[%clk 0:01:09]}  Bf8 {[%clk 0:00:50]} 30. Nxd4 {[%clk 0:00:59]}  Nc5 {[%clk 0:00:45]} 31. Rd8 {[%clk 0:00:56]}  Rxb7 {[%clk 0:00:41]} 32. g4 {[%clk 0:00:42]}  Kg7 {[%clk 0:00:37]} 33. g5 {[%clk 0:00:36]}  Ne4 {[%clk 0:00:34]} 34. h4 {[%clk 0:00:35]}  Bc5 {[%clk 0:00:25]} 35. Kg2 {[%clk 0:00:16]}  Rb2+ {[%clk 0:00:24]} 36. Kf3 {[%clk 0:00:15]}  Nd2+ {[%clk 0:00:19]} 37. Kg4 {[%clk 0:00:15]}  Ne4 {[%clk 0:00:18]} 38. Kf4 {[%clk 0:00:14]}  Nd2 {[%clk 0:00:14]} 39. Nf6 {[%clk 0:00:14]}  Bf8 {[%clk 0:00:14]} 40. Rd7 {[%clk 0:00:12]}  Nc4 {[%clk 0:00:12]} 41. Ne6+ {[%clk 0:00:13]}  Kh8 {[%clk 0:00:12]} 42. Nxf8 {[%clk 0:00:13]}  Rf2+ {[%clk 0:00:11]} 43. Kg3 {[%clk 0:00:13]}  Rf1 {[%clk 0:00:11]} 44. Nxg6+ {[%clk 0:00:13]}  fxg6 {[%clk 0:00:09]} 45. Rxh7# {[%clk 0:00:13]} 1-0


[Site "https://www.chess.com"]

[Event "Titled Tuesday Blitz May 10 Early 2022"]
[White "Gharibyan, Mamikon"]
[Black "Zhigalko, Sergei"]
[WhiteFideId "13308300"]
[BlackFideId "13502956"]
[WhiteElo "2254"]
[BlackElo "2662"]
[Result "0-1"]
[Round "06"]
[TimeControl "180+1"]
[Date "2022.05.10"]
[WhiteClock "0:00:02"]
[BlackClock "0:00:32"]

1. c4 {[%clk 0:03:00]}  e5 {[%clk 0:02:59]} 2. Nc3 {[%clk 0:03:00]}  Nf6 {[%clk 0:02:58]} 3. g3 {[%clk 0:02:57]}  c6 {[%clk 0:02:57]} 4. Nf3 {[%clk 0:02:57]}  d6 {[%clk 0:02:43]} 5. Bg2 {[%clk 0:02:52]}  Be7 {[%clk 0:02:43]} 6. O-O {[%clk 0:02:47]}  O-O {[%clk 0:02:42]} 7. b4 {[%clk 0:02:45]}  h6 {[%clk 0:02:41]} 8. b5 {[%clk 0:02:43]}  Be6 {[%clk 0:02:40]} 9. d3 {[%clk 0:02:30]}  Nbd7 {[%clk 0:02:40]} 10. bxc6 {[%clk 0:02:16]}  bxc6 {[%clk 0:02:40]} 11. Qa4 {[%clk 0:02:16]}  Nc5 {[%clk 0:02:35]} 12. Qc2 {[%clk 0:02:16]}  Rc8 {[%clk 0:02:28]} 13. Rd1 {[%clk 0:02:11]}  Qa5 {[%clk 0:02:22]} 14. d4 {[%clk 0:01:56]}  exd4 {[%clk 0:02:06]} 15. Nxd4 {[%clk 0:01:57]}  Qa6 {[%clk 0:02:03]} 16. Nxe6 {[%clk 0:01:54]}  fxe6 {[%clk 0:01:57]} 17. Nb1 {[%clk 0:01:37]}  Ng4 {[%clk 0:01:46]} 18. Bf4 {[%clk 0:01:17]}  Nxf2 {[%clk 0:01:27]} 19. Kxf2 {[%clk 0:01:18]}  e5 {[%clk 0:01:26]} 20. e3 {[%clk 0:01:03]}  exf4 {[%clk 0:01:26]} 21. exf4 {[%clk 0:01:04]}  Bf6 {[%clk 0:01:26]} 22. Nc3 {[%clk 0:01:04]}  Qxc4 {[%clk 0:01:26]} 23. Rac1 {[%clk 0:01:05]}  Bd4+ {[%clk 0:01:21]} 24. Kf3 {[%clk 0:01:04]}  Rce8 {[%clk 0:01:12]} 25. Kg4 {[%clk 0:00:34]}  Qe6+ {[%clk 0:01:03]} 26. f5 {[%clk 0:00:30]}  Rxf5 {[%clk 0:00:47]} 27. Rxd4 {[%clk 0:00:02]}  Rf2+ {[%clk 0:00:31]} 28. Kh4 {[%clk 0:00:01]}  Rxc2 {[%clk 0:00:31]} 29. Rxc2 {[%clk 0:00:02]}  Qf6+ {[%clk 0:00:32]} 0-1


[Site "https://www.chess.com"]

[Event "Titled Tuesday Blitz May 10 Early 2022"]
[White "Girinath, P.D.S."]
[Black "Ovezdurdyyeva, Jemal"]
[WhiteFideId "5000572"]
[BlackFideId "14001888"]
[WhiteElo "2369"]
[BlackElo "1946"]
[Result "1-0"]
[Round "06"]
[TimeControl "180+1"]
[Date "2022.05.11"]
[WhiteClock "0:01:41"]
[BlackClock "0:01:33"]

1. e4 {[%clk 0:03:00]}  d6 {[%clk 0:02:59]} 2. d4 {[%clk 0:02:59]}  Nf6 {[%clk 0:02:59]} 3. Nc3 {[%clk 0:03:00]}  g6 {[%clk 0:02:59]} 4. g3 {[%clk 0:03:00]}  c6 {[%clk 0:02:58]} 5. a4 {[%clk 0:02:56]}  a6 {[%clk 0:02:57]} 6. Bg2 {[%clk 0:02:53]}  Bg7 {[%clk 0:02:57]} 7. Nge2 {[%clk 0:02:53]}  O-O {[%clk 0:02:56]} 8. O-O {[%clk 0:02:52]}  e5 {[%clk 0:02:56]} 9. a5 {[%clk 0:02:50]}  b5 {[%clk 0:02:48]} 10. axb6 {[%clk 0:02:49]}  Qxb6 {[%clk 0:02:47]} 11. h3 {[%clk 0:02:38]}  a5 {[%clk 0:02:39]} 12. Be3 {[%clk 0:02:27]}  exd4 {[%clk 0:02:16]} 13. Bxd4 {[%clk 0:02:28]}  c5 {[%clk 0:02:16]} 14. Bxf6 {[%clk 0:02:24]}  Bxf6 {[%clk 0:02:08]} 15. Nd5 {[%clk 0:02:11]}  Qxb2 {[%clk 0:02:04]} 16. Rb1 {[%clk 0:02:04]}  Qe5 {[%clk 0:01:59]} 17. Nxf6+ {[%clk 0:01:57]}  Qxf6 {[%clk 0:01:58]} 18. e5 {[%clk 0:01:56]}  Qxe5 {[%clk 0:01:56]} 19. Bxa8 {[%clk 0:01:56]}  Bxh3 {[%clk 0:01:57]} 20. Bg2 {[%clk 0:01:54]}  Bg4 {[%clk 0:01:56]} 21. Re1 {[%clk 0:01:51]}  Na6 {[%clk 0:01:54]} 22. Qd2 {[%clk 0:01:49]}  Nb4 {[%clk 0:01:42]} 23. c3 {[%clk 0:01:44]}  Na6 {[%clk 0:01:39]} 24. Nf4 {[%clk 0:01:43]}  Qf6 {[%clk 0:01:37]} 25. Nd5 {[%clk 0:01:42]}  Qf5 {[%clk 0:01:33]} 26. Ne7+ {[%clk 0:01:41]} 1-0


[Site "https://www.chess.com"]

[Event "Titled Tuesday Blitz May 10 Early 2022"]
[White "Dronavalli, Harika"]
[Black "Nogerbek, Kazybek"]
[WhiteFideId "5015197"]
[BlackFideId "13710427"]
[WhiteElo "2382"]
[BlackElo "2441"]
[Result "0-1"]
[Round "06"]
[TimeControl "180+1"]
[Date "2022.05.10"]
[WhiteClock "0:00:34"]
[BlackClock "0:00:32"]

1. e4 {[%clk 0:03:00]}  c5 {[%clk 0:02:59]} 2. c3 {[%clk 0:03:00]}  d5 {[%clk 0:02:56]} 3. exd5 {[%clk 0:03:00]}  Qxd5 {[%clk 0:02:57]} 4. d4 {[%clk 0:03:01]}  Nf6 {[%clk 0:02:58]} 5. Nf3 {[%clk 0:03:01]}  e6 {[%clk 0:02:58]} 6. Na3 {[%clk 0:03:01]}  Nc6 {[%clk 0:02:32]} 7. Be3 {[%clk 0:02:53]}  cxd4 {[%clk 0:02:30]} 8. Nb5 {[%clk 0:02:53]}  Qd7 {[%clk 0:02:30]} 9. Nbxd4 {[%clk 0:02:52]}  Be7 {[%clk 0:02:29]} 10. Nxc6 {[%clk 0:02:47]}  Qxc6 {[%clk 0:02:28]} 11. Nd4 {[%clk 0:02:42]}  Qc7 {[%clk 0:02:23]} 12. Nb5 {[%clk 0:02:39]}  Qb8 {[%clk 0:02:20]} 13. Qf3 {[%clk 0:01:56]}  O-O {[%clk 0:01:55]} 14. Qg3 {[%clk 0:01:46]}  e5 {[%clk 0:01:47]} 15. Be2 {[%clk 0:01:46]}  a6 {[%clk 0:01:44]} 16. Bh6 {[%clk 0:01:29]}  Ne8 {[%clk 0:01:30]} 17. Na3 {[%clk 0:01:29]}  Bxa3 {[%clk 0:01:09]} 18. bxa3 {[%clk 0:01:29]}  Qd6 {[%clk 0:01:10]} 19. Bc1 {[%clk 0:01:28]}  Bd7 {[%clk 0:01:01]} 20. O-O {[%clk 0:01:27]}  Bc6 {[%clk 0:01:01]} 21. Rd1 {[%clk 0:01:24]}  Qg6 {[%clk 0:01:00]} 22. Qxg6 {[%clk 0:01:22]}  hxg6 {[%clk 0:01:01]} 23. Be3 {[%clk 0:01:21]}  Nc7 {[%clk 0:01:00]} 24. c4 {[%clk 0:01:19]}  Ne6 {[%clk 0:00:58]} 25. Rab1 {[%clk 0:01:19]}  Rfd8 {[%clk 0:00:57]} 26. Rxd8+ {[%clk 0:01:18]}  Rxd8 {[%clk 0:00:58]} 27. Rd1 {[%clk 0:01:18]}  Rxd1+ {[%clk 0:00:57]} 28. Bxd1 {[%clk 0:01:19]}  f5 {[%clk 0:00:57]} 29. f3 {[%clk 0:01:19]}  g5 {[%clk 0:00:57]} 30. Bb3 {[%clk 0:01:16]}  Kf8 {[%clk 0:00:53]} 31. c5 {[%clk 0:01:13]}  Nf4 {[%clk 0:00:52]} 32. Bc4 {[%clk 0:01:04]}  Ke7 {[%clk 0:00:48]} 33. g3 {[%clk 0:01:03]}  Nh3+ {[%clk 0:00:48]} 34. Kf1 {[%clk 0:00:58]}  Bxf3 {[%clk 0:00:47]} 35. a4 {[%clk 0:00:57]}  Bc6 {[%clk 0:00:44]} 36. a5 {[%clk 0:00:57]}  f4 {[%clk 0:00:45]} 37. Bd2 {[%clk 0:00:56]}  e4 {[%clk 0:00:42]} 38. Ke1 {[%clk 0:00:55]}  e3 {[%clk 0:00:42]} 39. Bc3 {[%clk 0:00:55]}  f3 {[%clk 0:00:37]} 40. Bf1 {[%clk 0:00:45]}  Ng1 {[%clk 0:00:35]} 41. Bd4 {[%clk 0:00:35]}  f2+ {[%clk 0:00:35]} 42. Kd1 {[%clk 0:00:35]}  Ba4+ {[%clk 0:00:31]} 43. Kc1 {[%clk 0:00:34]}  e2 {[%clk 0:00:32]} 0-1


[Site "https://www.chess.com"]

[Event "Titled Tuesday Blitz May 10 Early 2022"]
[White "Harshavardhan G B"]
[Black "Migot, Tangi"]
[WhiteFideId "25059009"]
[BlackFideId "662445"]
[WhiteElo "1831"]
[BlackElo "2526"]
[Result "1-0"]
[Round "06"]
[TimeControl "180+1"]
[Date "2022.05.11"]
[WhiteClock "0:00:26"]
[BlackClock "0:00:06"]

1. e4 {[%clk 0:02:10]}  c5 {[%clk 0:02:59]} 2. Nf3 {[%clk 0:02:09]}  Nc6 {[%clk 0:02:59]} 3. d4 {[%clk 0:02:07]}  cxd4 {[%clk 0:03:00]} 4. Nxd4 {[%clk 0:02:08]}  Nf6 {[%clk 0:03:01]} 5. Nc3 {[%clk 0:02:05]}  d6 {[%clk 0:03:01]} 6. Bg5 {[%clk 0:01:56]}  e6 {[%clk 0:03:01]} 7. Qd3 {[%clk 0:01:53]}  Bd7 {[%clk 0:02:56]} 8. Ndb5 {[%clk 0:01:51]}  Qa5 {[%clk 0:02:43]} 9. Bxf6 {[%clk 0:01:47]}  gxf6 {[%clk 0:02:42]} 10. Nxd6+ {[%clk 0:01:47]}  Bxd6 {[%clk 0:02:42]} 11. Qxd6 {[%clk 0:01:48]}  Rd8 {[%clk 0:02:41]} 12. Qf4 {[%clk 0:01:34]}  Ke7 {[%clk 0:02:36]} 13. O-O-O {[%clk 0:01:26]}  Qe5 {[%clk 0:02:32]} 14. Qe3 {[%clk 0:01:23]}  Bc8 {[%clk 0:02:25]} 15. Be2 {[%clk 0:01:18]}  Rhg8 {[%clk 0:02:19]} 16. f4 {[%clk 0:01:14]}  Qa5 {[%clk 0:02:18]} 17. Bf3 {[%clk 0:01:13]}  Rxd1+ {[%clk 0:02:01]} 18. Rxd1 {[%clk 0:01:14]}  Rd8 {[%clk 0:02:01]} 19. Nd5+ {[%clk 0:01:06]}  exd5 {[%clk 0:01:52]} 20. exd5+ {[%clk 0:01:05]}  Kf8 {[%clk 0:01:52]} 21. dxc6 {[%clk 0:01:04]}  Rxd1+ {[%clk 0:01:50]} 22. Kxd1 {[%clk 0:01:04]}  bxc6 {[%clk 0:01:46]} 23. Bxc6 {[%clk 0:01:00]}  Bf5 {[%clk 0:01:35]} 24. Qa3+ {[%clk 0:00:54]}  Qxa3 {[%clk 0:01:34]} 25. bxa3 {[%clk 0:00:55]}  Be6 {[%clk 0:01:28]} 26. Kd2 {[%clk 0:00:54]}  Ke7 {[%clk 0:01:25]} 27. Kd3 {[%clk 0:00:51]}  Kd6 {[%clk 0:01:24]} 28. Be4 {[%clk 0:00:50]}  h6 {[%clk 0:01:24]} 29. a4 {[%clk 0:00:48]}  a5 {[%clk 0:01:14]} 30. Kd4 {[%clk 0:00:47]}  Bxa2 {[%clk 0:01:02]} 31. Bd3 {[%clk 0:00:46]}  Be6 {[%clk 0:00:58]} 32. Bc4 {[%clk 0:00:45]}  Bd7 {[%clk 0:00:51]} 33. Bb5 {[%clk 0:00:40]}  Bc8 {[%clk 0:00:42]} 34. c4 {[%clk 0:00:37]}  Bb7 {[%clk 0:00:42]} 35. g3 {[%clk 0:00:36]}  Bf3 {[%clk 0:00:41]} 36. c5+ {[%clk 0:00:36]}  Kc7 {[%clk 0:00:42]} 37. Bc4 {[%clk 0:00:36]}  Bd1 {[%clk 0:00:41]} 38. Bb5 {[%clk 0:00:35]}  Bc2 {[%clk 0:00:40]} 39. Be8 {[%clk 0:00:35]}  Bb3 {[%clk 0:00:35]} 40. g4 {[%clk 0:00:33]}  Bd1 {[%clk 0:00:32]} 41. h3 {[%clk 0:00:31]}  h5 {[%clk 0:00:18]} 42. gxh5 {[%clk 0:00:29]}  Bxh5 {[%clk 0:00:18]} 43. h4 {[%clk 0:00:28]}  Bd1 {[%clk 0:00:17]} 44. Bb5 {[%clk 0:00:26]}  Bb3 {[%clk 0:00:13]} 45. h5 {[%clk 0:00:25]}  Bc2 {[%clk 0:00:13]} 46. h6 {[%clk 0:00:26]}  Bh7 {[%clk 0:00:10]} 47. Bd3 {[%clk 0:00:26]}  f5 {[%clk 0:00:11]} 48. Kd5 {[%clk 0:00:26]}  f6 {[%clk 0:00:10]} 49. c6 {[%clk 0:00:26]}  Bg8+ {[%clk 0:00:09]} 50. Kc5 {[%clk 0:00:26]}  Bh7 {[%clk 0:00:08]} 51. Bc4 {[%clk 0:00:26]}  Bg6 {[%clk 0:00:06]} 52. Bg8 {[%clk 0:00:26]} 1-0


[Site "https://www.chess.com"]

[Event "Titled Tuesday Blitz May 10 Early 2022"]
[White "Hnydiuk, Aleksander"]
[Black "Stankovic, Ivan G"]
[WhiteFideId "1109057"]
[BlackFideId "902837"]
[WhiteElo "2374"]
[BlackElo "2195"]
[Result "0-1"]
[Round "06"]
[TimeControl "180+1"]
[Date "2022.05.11"]
[WhiteClock "0:00:03"]
[BlackClock "0:01:29"]

1. e4 {[%clk 0:03:00]}  c5 {[%clk 0:02:59]} 2. Nf3 {[%clk 0:03:00]}  Nc6 {[%clk 0:03:00]} 3. Bb5 {[%clk 0:03:00]}  g6 {[%clk 0:03:00]} 4. Bxc6 {[%clk 0:03:00]}  bxc6 {[%clk 0:03:01]} 5. O-O {[%clk 0:02:57]}  Bg7 {[%clk 0:03:01]} 6. c3 {[%clk 0:02:51]}  Nh6 {[%clk 0:02:58]} 7. d4 {[%clk 0:02:50]}  cxd4 {[%clk 0:02:58]} 8. cxd4 {[%clk 0:02:51]}  O-O {[%clk 0:02:58]} 9. Re1 {[%clk 0:02:40]}  f5 {[%clk 0:02:58]} 10. e5 {[%clk 0:02:37]}  Nf7 {[%clk 0:02:54]} 11. b3 {[%clk 0:02:29]}  c5 {[%clk 0:02:53]} 12. d5 {[%clk 0:02:04]}  e6 {[%clk 0:02:43]} 13. Nc3 {[%clk 0:01:40]}  Bb7 {[%clk 0:02:37]} 14. Bb2 {[%clk 0:01:33]}  g5 {[%clk 0:02:35]} 15. h3 {[%clk 0:01:03]}  g4 {[%clk 0:02:30]} 16. hxg4 {[%clk 0:01:04]}  fxg4 {[%clk 0:02:30]} 17. Nh2 {[%clk 0:01:02]}  Nxe5 {[%clk 0:02:00]} 18. Nxg4 {[%clk 0:00:59]}  Qh4 {[%clk 0:01:51]} 19. Nxe5 {[%clk 0:00:14]}  Qxf2+ {[%clk 0:01:51]} 20. Kh1 {[%clk 0:00:15]}  Qh4+ {[%clk 0:01:39]} 21. Kg1 {[%clk 0:00:14]}  Qf2+ {[%clk 0:01:39]} 22. Kh1 {[%clk 0:00:14]}  Qxb2 {[%clk 0:01:39]} 23. Qd3 {[%clk 0:00:10]}  Bxe5 {[%clk 0:01:32]} 24. Rxe5 {[%clk 0:00:05]}  Qxa1+ {[%clk 0:01:32]} 25. Kh2 {[%clk 0:00:05]}  Qf1 {[%clk 0:01:31]} 26. Rg5+ {[%clk 0:00:05]}  Kh8 {[%clk 0:01:30]} 27. Rh5 {[%clk 0:00:03]}  Qxd3 {[%clk 0:01:29]} 0-1


[Site "https://www.chess.com"]

[Event "Titled Tuesday Blitz May 10 Early 2022"]
[White "Ismayil, Malak"]
[Black "Fajdetic, Hrvoje"]
[WhiteFideId "13412604"]
[BlackFideId "14501945"]
[WhiteElo "1879"]
[BlackElo "2172"]
[Result "1-0"]
[Round "06"]
[TimeControl "180+1"]
[Date "2022.05.11"]
[WhiteClock "0:01:18"]
[BlackClock "0:00:02"]

1. e4 {[%clk 0:03:00]}  c5 {[%clk 0:02:55]} 2. Nf3 {[%clk 0:02:55]}  g6 {[%clk 0:02:55]} 3. d4 {[%clk 0:02:53]}  cxd4 {[%clk 0:02:54]} 4. Nxd4 {[%clk 0:02:54]}  Bg7 {[%clk 0:02:55]} 5. Nc3 {[%clk 0:02:55]}  Nc6 {[%clk 0:02:55]} 6. Nxc6 {[%clk 0:02:55]}  bxc6 {[%clk 0:02:56]} 7. Bc4 {[%clk 0:02:54]}  e6 {[%clk 0:02:47]} 8. O-O {[%clk 0:02:45]}  d5 {[%clk 0:02:47]} 9. exd5 {[%clk 0:02:44]}  cxd5 {[%clk 0:02:45]} 10. Bb5+ {[%clk 0:02:44]}  Bd7 {[%clk 0:02:46]} 11. Bd3 {[%clk 0:02:44]}  Ne7 {[%clk 0:02:45]} 12. Bg5 {[%clk 0:02:43]}  f6 {[%clk 0:02:43]} 13. Bh4 {[%clk 0:02:40]}  Kf7 {[%clk 0:02:42]} 14. Rb1 {[%clk 0:02:35]}  e5 {[%clk 0:02:36]} 15. f3 {[%clk 0:02:18]}  Be6 {[%clk 0:02:23]} 16. Kh1 {[%clk 0:02:18]}  g5 {[%clk 0:02:08]} 17. Bg3 {[%clk 0:02:17]}  h5 {[%clk 0:02:08]} 18. h3 {[%clk 0:02:14]}  g4 {[%clk 0:01:58]} 19. h4 {[%clk 0:02:12]}  Ng6 {[%clk 0:01:42]} 20. Bxg6+ {[%clk 0:02:06]}  Kxg6 {[%clk 0:01:43]} 21. Qd3+ {[%clk 0:02:06]}  Bf5 {[%clk 0:01:24]} 22. Qe2 {[%clk 0:02:03]}  d4 {[%clk 0:00:50]} 23. Ne4 {[%clk 0:02:01]}  Rc8 {[%clk 0:00:48]} 24. Rbd1 {[%clk 0:01:59]}  Qd5 {[%clk 0:00:31]} 25. c3 {[%clk 0:01:55]}  Bxe4 {[%clk 0:00:18]} 26. fxe4 {[%clk 0:01:54]}  Qc4 {[%clk 0:00:18]} 27. Qf2 {[%clk 0:01:51]}  dxc3 {[%clk 0:00:15]} 28. Qf5+ {[%clk 0:01:50]}  Kh6 {[%clk 0:00:15]} 29. Bf2 {[%clk 0:01:41]}  Bf8 {[%clk 0:00:03]} 30. Qxf6+ {[%clk 0:01:34]}  Kh7 {[%clk 0:00:03]} 31. Qf5+ {[%clk 0:01:32]}  Kg8 {[%clk 0:00:02]} 32. Qxe5 {[%clk 0:01:29]}  Bg7 {[%clk 0:00:01]} 33. Qf5 {[%clk 0:01:24]}  c2 {[%clk 0:00:02]} 34. Rc1 {[%clk 0:01:20]}  Bxb2 {[%clk 0:00:02]} 35. Qg6+ {[%clk 0:01:18]} 1-0


[Site "https://www.chess.com"]

[Event "Titled Tuesday Blitz May 10 Early 2022"]
[White "Janaszak, Dawid"]
[Black "Saldano Dayer, Horacio"]
[WhiteFideId "1119206"]
[BlackFideId "103411"]
[WhiteElo "2199"]
[BlackElo "2419"]
[Result "1-0"]
[Round "06"]
[TimeControl "180+1"]
[Date "2022.05.11"]
[WhiteClock "0:01:19"]
[BlackClock "0:00:02"]

1. e4 {[%clk 0:03:00]}  e6 {[%clk 0:03:00]} 2. d4 {[%clk 0:02:59]}  d5 {[%clk 0:03:00]} 3. Bd3 {[%clk 0:03:00]}  c5 {[%clk 0:02:58]} 4. exd5 {[%clk 0:03:00]}  exd5 {[%clk 0:02:58]} 5. c3 {[%clk 0:03:00]}  Nc6 {[%clk 0:02:57]} 6. Nf3 {[%clk 0:03:00]}  Nf6 {[%clk 0:02:53]} 7. O-O {[%clk 0:02:59]}  Be7 {[%clk 0:02:52]} 8. dxc5 {[%clk 0:02:59]}  Bxc5 {[%clk 0:02:51]} 9. Qe2+ {[%clk 0:02:55]}  Be6 {[%clk 0:02:05]} 10. b4 {[%clk 0:02:54]}  Bb6 {[%clk 0:02:04]} 11. b5 {[%clk 0:02:47]}  Ne7 {[%clk 0:01:49]} 12. Ng5 {[%clk 0:02:43]}  Qd7 {[%clk 0:01:49]} 13. Be3 {[%clk 0:02:36]}  h6 {[%clk 0:01:30]} 14. Bxb6 {[%clk 0:02:31]}  hxg5 {[%clk 0:01:26]} 15. Bd4 {[%clk 0:02:25]}  Ng4 {[%clk 0:00:50]} 16. h3 {[%clk 0:02:18]}  Qc7 {[%clk 0:00:45]} 17. f4 {[%clk 0:02:08]}  gxf4 {[%clk 0:00:12]} 18. hxg4 {[%clk 0:02:07]}  f3 {[%clk 0:00:13]} 19. gxf3 {[%clk 0:02:08]}  Qg3+ {[%clk 0:00:12]} 20. Qg2 {[%clk 0:02:07]}  Qf4 {[%clk 0:00:13]} 21. Na3 {[%clk 0:01:48]}  O-O-O {[%clk 0:00:09]} 22. Rae1 {[%clk 0:01:48]}  Qh6 {[%clk 0:00:04]} 23. b6 {[%clk 0:01:45]}  a6 {[%clk 0:00:03]} 24. Be5 {[%clk 0:01:29]}  Ng6 {[%clk 0:00:03]} 25. Bg3 {[%clk 0:01:24]}  Nh4 {[%clk 0:00:02]} 26. Qh2 {[%clk 0:01:19]}  g5 {[%clk 0:00:02]} 27. Bb8 {[%clk 0:01:19]} 1-0


[Site "https://www.chess.com"]